[Event "Indian Blitz Championship 2023"]
[Site "Nashik"]
[Date "2024.03.07"]
[Round "11.2"]
[White "Raja Rithvik R"]
[Black "Ravi, Teja S."]
[Result "1/2-1/2"]
[ECO "D13"]
[WhiteElo "2532"]
[BlackElo "2437"]
[Annotator "TA"]
[PlyCount "166"]
[EventDate "2024.03.07"]
[EventType "blitz"]
[EventCountry "IND"]
[SourceTitle "playchess.com"]
[Source "ChessBase"]
[SourceQuality "1"]
[TimeControl "180+2"]

{[%evp 20,166,21,19,23,27,10,25,17,16,17,12,21,24,27,0,0,3,143,0,8,0,11,-33,0,0,41,0,15,0,0,21,92,99,88,99,99,10,46,28,37,35,147,143,134,76,75,75,76,80,83,58,58,57,82,97,96,106,98,88,139,74,90,54,61,57,136,49,76,77,75,75,75,75,205,208,237,211,1184,906,826,751,1235,664,12838,6091,29972,29969,29976,29978,29978,29979,29979,29980,29980,29981,29981,29982,29982,0,0,0,0,0,0,0,0,0,0,0,0,0,0,0,0,0,0,0,0,0,0,0,0,0,0,0,0,0,0,0,0,0,0,0,0,0,0,0,0,0,0,0,0,0,0,0,0,0,0]} 1. d4 {[%emt 0:00:01]} d5 {[%emt 0:00:01]} 2. c4 {[%emt 0:00:01]} c6 {[%emt 0:00:00]} 3. cxd5 {[%emt 0:00:01]} cxd5 {[%emt 0:00:01]} 4. Nc3 {[%emt 0:00:01]} Nf6 {[%emt 0:00:01]} 5. Nf3 {[%emt 0:00:01]} Nc6 {[%emt 0:00:00]} 6. Bf4 {[%emt 0:00:01]} a6 {[%emt 0:00:01]} 7. Rc1 {[%emt 0:00:01]} e6 {[%emt 0:00:05]} 8. e3 {[%emt 0:00:01]} Bd6 {[%emt 0:00:01]} 9. Bxd6 {[%emt 0:00:04]} Qxd6 {[%emt 0:00:01]} 10. Bd3 {[%emt 0:00:02]} O-O {[%emt 0:00:01]} 11. O-O {[%emt 0:00:02]} Bd7 {[%emt 0:00:01]} 12. Na4 {[%emt 0:00:08]} Nb4 {[%emt 0:00:12][%cal Ob4d3]} 13. Bb1 {[%emt 0:00:11]} Bb5 {[%emt 0:00:24] White has an edge.} 14. Re1 {[%emt 0:00:01]} Rfc8 {[%emt 0:00:05] aiming for ...Rxc1.} 15. Nc3 {[%emt 0:00:01] And now a3 would win.} Be8 {[%emt 0:00:14]} 16. a3 {[%emt 0:00:06]} Nc6 {[%emt 0:00:01]} 17. b4 {[%emt 0:00:06]} a5 {[%emt 0:00:10]} 18. b5 {[%emt 0:00:10]} Nb8 {[%emt 0:00:01]} (18... Ne7 $11 {keeps the balance.} 19. Qb3 g6) 19. Qb3 {[%emt 0:00:10]} (19. Nxd5 Rxc1 20. Nxf6+ gxf6) (19. Ne4 $16 Qd8 20. Nxf6+ gxf6 21. Rxc8 Qxc8 22. Qd3) 19... Nbd7 $11 {[%emt 0:00:02]} 20. Na4 {[%emt 0:00:05][%cal Bc3a4,Ba4c5,Bc5e4,Be4d6][%mdl 32]} Nb6 {[%emt 0:00:05]} 21. Nc5 {[%emt 0:00:04][%cal Ob1d3]} Rc7 {[%emt 0:00:11]} 22. Ne5 {[%emt 0:00:22]} Nfd7 {[%emt 0:00:11]} 23. Qc2 {[%emt 0:00:52]} (23. Nexd7 $5 Bxd7 24. e4 $14) 23... g6 {[%emt 0:00:07] [#]} 24. Ne4 $1 {[%emt 0:00:01]} Rxc2 {[%emt 0:00:34]} (24... dxe4 25. Qxc7 Qd5 26. Nxd7 Nxd7 27. a4 $18) 25. Nxd6 {[%emt 0:00:02]} Rxc1 {[%emt 0:00:01]} (25... Rb2 $1 $11) 26. Rxc1 $16 {[%emt 0:00:01]} Nxe5 {[%emt 0:00:01]} 27. dxe5 {[%emt 0:00:01]} Nc4 {[%emt 0:00:00]} 28. a4 {[%emt 0:00:18]} (28. Nxc4 $16 dxc4 29. a4) 28... Nxe5 {[%emt 0:00:08]} 29. Nxb7 {[%emt 0:00:05]} Nc4 {[%emt 0:00:01] Repels Nd6} 30. Ba2 {[%emt 0:00:06]} Rb8 {[%emt 0:00:08]} ({Black should play} 30... Nb6 $1 $14) 31. Bxc4 {[%emt 0:00:17]} Rxb7 {[%emt 0:00:01][%mdl 4096] Endgame. KRB-KRB} 32. Bb3 {[%emt 0:00:03]} (32. Bd3 $142 {Black must now prevent Rc8.} Bd7 33. e4) 32... Bd7 {[%emt 0:00:02] Dodges Rc8+} 33. f4 {[%emt 0:00:02]} Kf8 {[%emt 0:00:00]} 34. Kf2 {[%emt 0:00:03]} Ke7 {[%emt 0:00:01]} 35. g4 {[%emt 0:00:07]} h6 {[%emt 0:00:00]} 36. h4 {[%emt 0:00:02]} f6 {[%emt 0:00:01]} 37. g5 {[%emt 0:00:01]} hxg5 {[%emt 0:00:05]} 38. hxg5 {[%emt 0:00:01]} fxg5 {[%emt 0:00:16]} 39. fxg5 {[%emt 0:00:00]} Rb8 {[%emt 0:00:01]} (39... Kd6 $142) 40. Rc7 {[%emt 0:00:08]} (40. Rh1 $142 $1) 40... Ra8 {[%emt 0:00:11]} 41. Bc2 {[%emt 0:00:04][%cal Oc7b7]} Kd6 {[%emt 0:00:00]} 42. Rb7 {[%emt 0:00:13][%cal Of2e1]} Rc8 {[%emt 0:00:04]} (42... Rh8 $1 $14 43. Ke1 (43. Bxg6 Rf8+ 44. Ke1 Rg8 $16) 43... Rh3) 43. Bxg6 {[%emt 0:00:02]} ({Better is} 43. Rb6+ $16 Kc5 44. Rb7) 43... Rg8 {[%emt 0:00:01]} 44. Bd3 {[%emt 0:00:05]} (44. Rb6+ Kc7 45. Bf7 Rxg5 46. Bxe6 Kxb6 $19) 44... Rxg5 {[%emt 0:00:02]} 45. Ra7 {[%emt 0:00:01]} e5 {[%emt 0:00:09]} 46. Rxa5 {[%emt 0:00:03] White is more active.} e4 {[%emt 0:00:01]} (46... d4 $16) 47. Be2 $18 {[%emt 0:00:02]} Kc5 {[%emt 0:00:15]} 48. Ra7 {[%emt 0:00:01]} Bg4 {[%emt 0:00:10]} (48... Bh3 49. a5 Rg2+ 50. Ke1 d4) 49. Bxg4 {[%emt 0:00:06]} Rxg4 {[%emt 0:00:00] KR-KR} 50. Rc7+ {[%emt 0:00:02]} Kb4 {[%emt 0:00:10]} 51. b6 {[%emt 0:00:02]} Rg8 {[%emt 0:00:02]} 52. Ra7 {[%emt 0:00:01]} Rb8 {[%emt 0:00:13]} 53. a5 {[%emt 0:00:02][%cal Ba4a5,Ba5a6][%mdl 32]} Kc3 {[%emt 0:00:04]} 54. b7 {[%emt 0:00:04]} d4 {[%emt 0:00:02] [#]} 55. a6 $1 {[%emt 0:00:08]} Kd2 {[%emt 0:00:01]} 56. Ra8 {[%emt 0:00:02]} (56. exd4 $2 e3+ 57. Kg2 e2 $19) 56... dxe3+ {[%emt 0:00:01]} 57. Kg2 {[%emt 0:00:01]} e2 {[%emt 0:00:05]} 58. Rxb8 {[%emt 0:00:01]} e1=Q {[%emt 0:00:01] [#] KQ-KR} 59. Rd8+ $2 {[%emt 0:00:02]} (59. Rf8 $1 {mates} Ke3 60. b8=Q (60. b8=B $2 Qe2+ 61. Kg3 Qxa6 $17) 60... Qe2+ 61. Kg3 Qe1+ 62. Kh3 Qh1+ 63. Qh2 Qxh2+ 64. Kxh2) 59... Ke3 $11 {[%emt 0:00:02] ( -> ...Qe2+). The position is equal.} 60. b8=Q {[%emt 0:00:10] Chess con chili.} (60. b8=B Qf2+ 61. Kh3 Qf5+ 62. Kh2 Qh5+ 63. Kg2 Qg5+ 64. Bg3 Qxd8 65. Bf2+ Ke2 66. a7 Qg8+ 67. Bg3 e3 68. Kh3 Kf3 (68... Qe6+ 69. Kh4 Qe7+ 70. Kg4 Qxa7 71. Kg5 Qg7+ 72. Kf4 Qf6+ 73. Kg4 Qf3+ 74. Kg5 Qxg3+ 75. Kf6 Kd1 76. Ke7 e2 77. Kd7 e1=Q 78. Kc6 Qe6+ 79. Kc5 Qc3+ 80. Kb5 Qec6#) 69. a8=B+ Qxa8 70. Kh4 Qg8 71. Kh5 Kxg3 (71... Qxg3 {leads to mate.} 72. Kh6 e2 73. Kh5 e1=Q 74. Kh6 Qh1#) 72. Kh6 Kf4 73. Kh5 Qh7#) 60... Qf2+ {[%emt 0:00:03]} 61. Kh3 {[%emt 0:00:00]} Qf5+ {[%emt 0:00:01]} 62. Kh4 {[%emt 0:00:00]} Qf6+ {[%emt 0:00:03]} 63. Kh5 {[%emt 0:00:00]} Qf5+ $1 {[%emt 0:00:02]} 64. Kh6 {[%emt 0:00:00]} Qf6+ $1 {[%emt 0:00:01]} 65. Kh5 {[%emt 0:00:03]} Qf5+ $1 {[%emt 0:00:00]} 66. Kh4 {[%emt 0:00:00]} Qf6+ {[%emt 0:00:03]} 67. Kh3 {[%emt 0:00:03]} Qf5+ $1 {[%emt 0:00:01]} 68. Kh2 {[%emt 0:00:05]} Qf2+ {[%emt 0:00:02]} 69. Kh3 {[%emt 0:00:01]} Qf5+ {[%emt 0:00:00]} 70. Kh4 {[%emt 0:00:00]} Qf6+ {[%emt 0:00:01]} 71. Kg4 {[%emt 0:00:01]} Qg6+ {[%emt 0:00:01]} 72. Kh3 {[%emt 0:00:00]} Qf5+ {[%emt 0:00:01]} 73. Kg2 {[%emt 0:00:01]} Qf2+ {[%emt 0:00:00]} 74. Kh3 {[%emt 0:00:03]} Qf5+ {[%emt 0:00:01]} 75. Kh4 {[%emt 0:00:04]} Qf6+ {[%emt 0:00:01]} 76. Kh5 {[%emt 0:00:02]} Qf5+ $1 {[%emt 0:00:00]} 77. Kh6 {[%emt 0:00:01] Intending Qg3+ and mate.} Qf6+ $1 {[%emt 0:00:01]} 78. Kh7 {[%emt 0:00:01] White threatens Qg3+ and mate.} Qf7+ $1 {[%emt 0:00:03]} 79. Kh8 {[%emt 0:00:01]} Qf6+ $1 {[%emt 0:00:01]} 80. Kg8 {[%emt 0:00:07]} Qg6+ $1 {[%emt 0:00:00]} 81. Kf8 {[%emt 0:00:02] Qe5 would kill now.} Qf6+ {[%emt 0:00:01]} 82. Ke8 {[%emt 0:00:01] White wants to mate with Qb3+.} Qe6+ $1 {[%emt 0:00:00]} 83. Kf8 {[%emt 0:00:01] Threatening mate with Qg3+.} Qf6+ {[%emt 0:00:01] Blacks defense is rewarded with a draw.   Weighted Error Value: White=0.26 (precise) /Black=0.32.  Mistake:       	White=5     	Black=7      Inaccurate:     	White=4     	Black=4      OK:         	White=17    	Black=17     Best:        	White=9     	Black=13     Strong:       	---       	Black=10} 1/2-1/2

[Event "Indian Blitz Championship 2023"]
[Site "Nashik"]
[Date "2024.03.07"]
[Round "11.3"]
[White "Wagh Suyog"]
[Black "Aronyak Ghosh"]
[Result "1/2-1/2"]
[ECO "A34"]
[WhiteElo "2250"]
[BlackElo "2517"]
[Annotator "RC"]
[PlyCount "91"]
[EventDate "2024.03.07"]
[EventType "blitz"]
[EventCountry "IND"]
[SourceTitle "playchess.com"]
[Source "ChessBase"]
[SourceQuality "1"]
[TimeControl "180+2"]

1. Nf3 {[%emt 0:00:08]} Nf6 {[%emt 0:00:02]} 2. c4 {[%emt 0:00:20]} c5 {[%emt 0:00:12]} 3. Nc3 {[%emt 0:00:29]} e6 {[%emt 0:00:12]} 4. g3 {[%emt 0:00:12]} Nc6 {[%emt 0:00:02]} 5. Bg2 {[%emt 0:00:02]} Qb6 {[%emt 0:00:02]} 6. O-O {[%emt 0:00:05]} Be7 {[%emt 0:00:02]} 7. e3 {[%emt 0:00:19]} d5 {[%emt 0:00:28]} 8. Qe2 {[%emt 0:00:18]} O-O {[%emt 0:00:09]} 9. b3 {[%emt 0:00:03]} Rd8 {[%emt 0:00:04]} 10. d3 {[%emt 0:00:06]} Bd7 {[%emt 0:00:14]} 11. Rb1 {[%emt 0:00:02]} Be8 {[%emt 0:00:05]} 12. Rd1 {[%emt 0:00:04]} Qc7 {[%emt 0:00:04]} 13. Bb2 {[%emt 0:00:02]} a6 {[%emt 0:00:04]} 14. cxd5 {[%emt 0:00:14]} Nxd5 {[%emt 0:00:18]} 15. Nxd5 {[%emt 0:00:08]} Rxd5 {[%emt 0:00:02]} 16. Rbc1 {[%emt 0:00:20]} Qa5 {[%emt 0:00:10]} 17. Bc3 {[%emt 0:00:02]} Qb5 {[%emt 0:00:10]} 18. Bf1 {[%emt 0:00:13]} Rdd8 {[%emt 0:00:05]} 19. Qb2 {[%emt 0:00:01]} f6 {[%emt 0:00:08]} 20. d4 {[%emt 0:00:00]} Qb6 {[%emt 0:00:01]} 21. dxc5 {[%emt 0:00:06]} Bxc5 {[%emt 0:00:02]} 22. Bg2 {[%emt 0:00:07]} Rxd1+ {[%emt 0:00:04]} 23. Rxd1 {[%emt 0:00:00]} Rd8 {[%emt 0:00:01]} 24. Rxd8 {[%emt 0:00:02]} Qxd8 {[%emt 0:00:02]} 25. Qd2 {[%emt 0:00:02]} Qxd2 {[%emt 0:00:04]} 26. Nxd2 {[%emt 0:00:01]} Kf8 {[%emt 0:00:05]} 27. Kf1 {[%emt 0:00:01]} Ke7 {[%emt 0:00:02]} 28. Ke2 {[%emt 0:00:01]} e5 {[%emt 0:00:07]} 29. Ne4 {[%emt 0:00:11]} Bb6 {[%emt 0:00:03]} 30. Nd2 {[%emt 0:00:02]} Bc7 {[%emt 0:00:03]} 31. h4 {[%emt 0:00:03]} h5 {[%emt 0:00:03]} 32. Kd1 {[%emt 0:00:03]} Bg6 {[%emt 0:00:04]} 33. Be4 {[%emt 0:00:02]} Bxe4 {[%emt 0:00:05]} 34. Nxe4 {[%emt 0:00:01]} Bd6 {[%emt 0:00:01]} 35. Kc2 {[%emt 0:00:04]} Ke6 {[%emt 0:00:02]} 36. Nxd6 {[%emt 0:00:03]} Kxd6 {[%emt 0:00:01]} 37. e4 {[%emt 0:00:06]} Kc5 {[%emt 0:00:04]} 38. a3 {[%emt 0:00:02]} b5 {[%emt 0:00:02]} 39. Kd3 {[%emt 0:00:03]} b4 {[%emt 0:00:09]} 40. Bb2 {[%emt 0:00:01]} a5 {[%emt 0:00:08]} 41. a4 {[%emt 0:00:04]} Nd8 {[%emt 0:00:04]} 42. Bc1 {[%emt 0:00:01]} Nb7 {[%emt 0:00:04]} 43. Be3+ {[%emt 0:00:02]} Kc6 44. f3 {[%emt 0:00:02]} Nc5+ {[%emt 0:00:02]} 45. Bxc5 {[%emt 0:00:05]} Kxc5 {[%emt 0:00:36]} 46. Ke3 {[%emt 0:00:02]} 1/2-1/2

[Event "Indian Blitz Championship 2023"]
[Site "Nashik"]
[Date "2024.03.07"]
[Round "11.4"]
[White "Vaz, Ethan"]
[Black "Srihari L R"]
[Result "1-0"]
[ECO "B22"]
[WhiteElo "2409"]
[BlackElo "2490"]
[Annotator "RC"]
[PlyCount "86"]
[EventDate "2024.03.07"]
[EventType "blitz"]
[EventCountry "IND"]
[SourceTitle "playchess.com"]
[Source "ChessBase"]
[SourceQuality "1"]
[TimeControl "180+2"]

1. e4 {[%emt 0:03:04]} c5 {[%emt 0:00:00]} 2. c3 {[%emt 0:00:00]} d5 {[%emt 0:00:01]} 3. exd5 {[%emt 0:00:00]} Qxd5 {[%emt 0:00:01]} 4. d4 {[%emt 0:00:00]} Nc6 {[%emt 0:00:01]} 5. Nf3 {[%emt 0:00:00]} Bg4 {[%emt 0:00:01]} 6. dxc5 {[%emt 0:00:00]} Qxd1+ {[%emt 0:00:06]} 7. Kxd1 {[%emt 0:00:00]} O-O-O+ {[%emt 0:00:07]} 8. Nbd2 {[%emt 0:00:00]} e5 {[%emt 0:00:04]} 9. b4 {[%emt 0:00:00]} f6 {[%emt 0:00:11]} 10. h3 {[%emt 0:00:00]} Be6 {[%emt 0:00:10]} 11. Kc2 {[%emt 0:00:00]} Nge7 {[%emt 0:00:02]} 12. Bc4 {[%emt 0:00:00]} Nd5 {[%emt 0:00:04]} 13. Kb2 {[%emt 0:00:00]} Bf5 {[%emt 0:00:15]} 14. Nb3 {[%emt 0:00:00]} Be4 {[%emt 0:01:13]} 15. Re1 {[%emt 0:00:00]} Bg6 {[%emt 0:00:15]} 16. Bd2 {[%emt 0:00:00]} Bf7 {[%emt 0:00:15]} 17. Rad1 {[%emt 0:00:00]} Rd7 {[%emt 0:00:14]} 18. Bc1 {[%emt 0:00:00]} Be7 {[%emt 0:00:08]} 19. Rd2 {[%emt 0:00:00]} Rhd8 {[%emt 0:00:04]} 20. Red1 {[%emt 0:00:00]} e4 {[%emt 0:00:10]} 21. Nfd4 {[%emt 0:00:04]} Ne5 {[%emt 0:00:00]} 22. Bb5 {[%emt 0:00:03]} Rc7 {[%emt 0:00:01]} 23. Re1 {[%emt 0:00:09]} a6 {[%emt 0:00:05]} 24. Bf1 {[%emt 0:00:01]} b6 {[%emt 0:00:16]} 25. Bxa6+ {[%emt 0:00:04]} Kb8 {[%emt 0:00:01]} 26. c6 {[%emt 0:00:14]} Nxc6 {[%emt 0:00:02]} 27. Rxe4 {[%emt 0:00:05]} Ne5 {[%emt 0:00:05]} 28. f4 {[%emt 0:00:05]} Nxc3 {[%emt 0:00:01]} 29. Re1 {[%emt 0:00:04]} Na4+ {[%emt 0:00:03]} 30. Ka1 {[%emt 0:00:02]} Bxb4 {[%emt 0:00:01]} 31. fxe5 {[%emt 0:00:03]} Bc3+ {[%emt 0:00:04]} 32. Kb1 {[%emt 0:00:02]} Bg6+ {[%emt 0:00:00]} 33. Nc2 {[%emt 0:00:05]} Bxd2 {[%emt 0:00:01]} 34. Bxd2 {[%emt 0:00:01]} Rxc2 {[%emt 0:00:01]} 35. Ka1 {[%emt 0:00:02]} Rdxd2 {[%emt 0:00:02]} 36. Nxd2 {[%emt 0:00:01]} Rxd2 {[%emt 0:00:02]} 37. e6 {[%emt 0:00:01]} Nc3 {[%emt 0:00:01]} 38. Bc4 {[%emt 0:00:00]} Rd4 {[%emt 0:00:04]} 39. Bb3 {[%emt 0:00:03]} Re4 {[%emt 0:00:04]} 40. Rc1 {[%emt 0:00:00]} Nb5 {[%emt 0:00:02]} 41. Rc6 {[%emt 0:00:01]} Kb7 {[%emt 0:00:01]} 42. Bd5 {[%emt 0:00:04]} Re1+ {[%emt 0:00:01]} 43. Rc1+ {[%emt 0:00:01]} Ka6 {[%emt 0:00:08]} 1-0

[Event "Indian Blitz Championship 2023"]
[Site "Nashik"]
[Date "2024.03.07"]
[Round "11.5"]
[White "Laxman, R.R."]
[Black "Aradhya, Garg"]
[Result "0-1"]
[ECO "E04"]
[WhiteElo "2331"]
[BlackElo "2385"]
[Annotator "TA"]
[PlyCount "52"]
[EventDate "2024.03.07"]
[EventType "blitz"]
[EventCountry "IND"]
[SourceTitle "playchess.com"]
[Source "ChessBase"]
[SourceQuality "1"]
[TimeControl "180+2"]

{[%evp 12,52,36,35,42,2,6,15,0,0,0,0,16,0,14,0,0,0,0,-29,0,-63,-63,-81,-93,-81,-68,-80,-88,-264,-250,-239,-260,-472,-456,-643,-634,-655,-655,-654,-657,-2006,-940]} 1. d4 {[%emt 0:00:03]} d5 {[%emt 0:00:01]} 2. Nf3 {[%emt 0:00:02]} Nf6 {[%emt 0:00:01]} 3. c4 {[%emt 0:00:06]} e6 {[%emt 0:00:01]} 4. g3 {[%emt 0:00:02]} dxc4 {[%emt 0:00:01]} 5. Bg2 {[%emt 0:00:01]} Nbd7 {[%emt 0:00:02]} 6. O-O {[%emt 0:00:16]} c6 {[%emt 0:00:01]} 7. a4 {[%emt 0:00:06][%mdl 1024] White has compensation.} b6 {[%emt 0:00:01]} 8. Nc3 {[%emt 0:00:05]} Ba6 {[%emt 0:00:36]} 9. e4 {[%emt 0:00:09]} Be7 {[%emt 0:00:03] The position is equal.} 10. Qc2 {[%emt 0:00:05]} O-O {[%emt 0:00:03]} 11. Rd1 {[%emt 0:00:01]} Rc8 {[%emt 0:00:09]} 12. Bf4 {[%emt 0:00:07]} Bb4 {[%emt 0:00:31]} 13. h4 {[%emt 0:00:25]} Qe7 {[%emt 0:00:01]} 14. Na2 {[%emt 0:00:05]} Ba5 {[%emt 0:00:04]} 15. Nd2 {[%emt 0:00:18]} Bxd2 {[%emt 0:00:09]} 16. Bxd2 {[%emt 0:00:02]} ({White should play} 16. Qxd2 $11 e5 17. dxe5 Nxe5 18. Qe2) 16... c5 $15 {[%emt 0:00:01]} 17. d5 {[%emt 0:00:08]} Ne5 {[%emt 0:00:11]} 18. Bc3 {[%emt 0:00:15]} exd5 {[%emt 0:00:01] [#] Strongly threatening ...d4.} 19. exd5 {[%emt 0:00:01]} Nd3 {[%emt 0:00:06] Dodges Re1} 20. b3 $2 {[%emt 0:00:13] This move loses the game for White.} (20. Nc1 $17) 20... cxb3 {[%emt 0:00:01]} 21. Qxb3 {[%emt 0:00:00] [#]} Ng4 $1 {[%emt 0:00:21] Excellent horsemanship.} 22. Rd2 {[%emt 0:00:07]} (22. Be1 c4 23. Qc2) 22... Ndxf2 $19 {[%emt 0:00:22] Hoping for ...Qe3. Black is clearly winning.} 23. Rxf2 {[%emt 0:00:04]} (23. Bxg7 $142 Kxg7 24. Qc3+ Kg8 25. Rxf2 Nxf2 26. Kxf2) 23... Qe3 $1 {[%emt 0:00:02]} 24. Qb2 {[%emt 0:00:18][%cal Og2f3]} Qxg3 {[%emt 0:00:01][%csl Gg4][%cal Rg3h2]} (24... Qxf2+ 25. Qxf2 Nxf2 26. Kxf2 $11) 25. Be5 {[%emt 0:00:27]} Nxe5 {[%emt 0:00:02]} 26. Nc3 {[%emt 0:00:05]} Nd3 {[%emt 0:00:03] Weighted Error Value: White=0.83/Black=0.05 (flawless) .  Loses game:     	White=1     	---        Mistake:       	White=3     	---        Inaccurate:     	White=2     	Black=1      OK:         	White=4     	Black=6      Best:        	---       	Black=3      Strong:       	---       	Black=1} 0-1

[Event "Indian Blitz Championship 2023"]
[Site "Nashik"]
[Date "2024.03.07"]
[Round "11.6"]
[White "Hari Madhavan N B"]
[Black "Sharma, Dinesh K."]
[Result "1-0"]
[ECO "B51"]
[WhiteElo "2395"]
[BlackElo "2209"]
[Annotator "RC"]
[PlyCount "113"]
[EventDate "2024.03.07"]
[EventType "blitz"]
[EventCountry "IND"]
[SourceTitle "playchess.com"]
[Source "ChessBase"]
[SourceQuality "1"]
[TimeControl "180+2"]

1. e4 {[%emt 0:00:03]} c5 {[%emt 0:00:01]} 2. Nf3 {[%emt 0:00:01]} d6 {[%emt 0:00:01]} 3. Bb5+ {[%emt 0:00:01]} Nd7 {[%emt 0:00:01]} 4. a4 {[%emt 0:00:01]} Ngf6 {[%emt 0:00:02]} 5. Nc3 {[%emt 0:00:01]} g6 {[%emt 0:00:04]} 6. O-O {[%emt 0:00:02]} Bg7 {[%emt 0:00:01]} 7. Re1 {[%emt 0:00:01]} O-O {[%emt 0:00:03]} 8. d4 {[%emt 0:00:01]} cxd4 {[%emt 0:00:04]} 9. Nxd4 {[%emt 0:00:02]} a6 {[%emt 0:00:01]} 10. Bf1 {[%emt 0:00:01]} e6 {[%emt 0:00:25]} 11. f3 {[%emt 0:00:08]} Qc7 {[%emt 0:00:11]} 12. Be3 {[%emt 0:00:02]} b6 {[%emt 0:00:03]} 13. Qd2 {[%emt 0:00:17]} Bb7 {[%emt 0:00:04]} 14. Rad1 {[%emt 0:00:08]} Rfd8 {[%emt 0:00:11]} 15. Bh6 {[%emt 0:00:19]} Bh8 {[%emt 0:00:15]} 16. Bg5 {[%emt 0:00:15]} Ne5 {[%emt 0:00:28]} 17. Qf4 {[%emt 0:00:27]} Ned7 {[%emt 0:00:10]} 18. Qh4 {[%emt 0:00:03]} Re8 {[%emt 0:00:18]} 19. Kh1 {[%emt 0:00:05]} h5 {[%emt 0:00:19]} 20. Nb3 {[%emt 0:00:30]} Nh7 {[%emt 0:00:06]} 21. Be7 {[%emt 0:00:19]} Bf6 {[%emt 0:00:25]} 22. Bxf6 {[%emt 0:00:07]} Ndxf6 {[%emt 0:00:02]} 23. Rd2 {[%emt 0:00:08]} Kg7 {[%emt 0:00:01]} 24. Qg3 {[%emt 0:00:05]} Rad8 {[%emt 0:00:03]} 25. Red1 {[%emt 0:00:01]} e5 {[%emt 0:00:05]} 26. Qf2 {[%emt 0:00:10]} Nf8 {[%emt 0:00:03]} 27. Be2 {[%emt 0:00:07]} Ne6 {[%emt 0:00:03]} 28. Qf1 {[%emt 0:00:01]} Nf4 {[%emt 0:00:20]} 29. Bxa6 {[%emt 0:00:03]} Ba8 {[%emt 0:00:02]} 30. Bb5 {[%emt 0:00:05]} Bc6 {[%emt 0:00:03]} 31. Qc4 {[%emt 0:00:08]} Rc8 {[%emt 0:00:03]} 32. Bxc6 {[%emt 0:00:03]} Qxc6 {[%emt 0:00:02]} 33. Qxc6 {[%emt 0:00:01]} Rxc6 {[%emt 0:00:01]} 34. Rxd6 {[%emt 0:00:01]} Rc4 {[%emt 0:00:01]} 35. Rxb6 {[%emt 0:00:06]} h4 {[%emt 0:00:02]} 36. Nc1 {[%emt 0:00:08]} h3 {[%emt 0:00:02]} 37. g3 {[%emt 0:00:00]} Ne6 {[%emt 0:00:01]} 38. N1e2 {[%emt 0:00:04]} Rec8 {[%emt 0:00:03]} 39. Rbd6 {[%emt 0:00:02]} g5 {[%emt 0:00:05]} 40. Kg1 {[%emt 0:00:05]} g4 {[%emt 0:00:01]} 41. fxg4 {[%emt 0:00:03]} Nxg4 {[%emt 0:00:02]} 42. a5 {[%emt 0:00:05]} Nf6 {[%emt 0:00:03]} 43. a6 {[%emt 0:00:03]} Ra8 {[%emt 0:00:01]} 44. b3 {[%emt 0:00:02]} Rb4 {[%emt 0:00:02]} 45. Nd5 {[%emt 0:00:03]} Rxe4 {[%emt 0:00:01]} 46. Nxf6 {[%emt 0:00:02]} Kxf6 {[%emt 0:00:01]} 47. Nc3 {[%emt 0:00:01]} Rg4 {[%emt 0:00:01]} 48. Nd5+ {[%emt 0:00:01]} Kg7 {[%emt 0:00:01]} 49. Ra1 {[%emt 0:00:02]} Rd4 {[%emt 0:00:03]} 50. c4 {[%emt 0:00:03]} Ng5 {[%emt 0:00:03]} 51. Kf1 {[%emt 0:00:03]} Rd2 {[%emt 0:00:01]} 52. Ne3 {[%emt 0:00:02]} Rb2 {[%emt 0:00:03]} 53. Nf5+ {[%emt 0:00:02]} Kh7 {[%emt 0:00:01]} 54. Rh6+ {[%emt 0:00:01]} Kg8 {[%emt 0:00:01]} 55. Ke1 {[%emt 0:00:02]} Nf3+ {[%emt 0:00:01]} 56. Kd1 {[%emt 0:00:01]} Rc8 {[%emt 0:00:01]} 57. Rd6 {[%emt 0:00:01]} 1-0